[Event "Budapest One Week IM-B 03-2025"]
[Site "Budapest"]
[Date "2025.03.18"]
[Round "2.5"]
[White "Ongut, Tamas Gunes"]
[Black "Mrithyunjay Mahadevan"]
[Result "1-0"]
[Annotator "TA"]
[ECO "A04"]
[WhiteElo "2290"]
[BlackElo "2295"]
[PlyCount "91"]
[EventDate "2025.03.17"]
[EventType "tourn"]
[EventCountry "HUN"]
[SourceTitle "playchess.com"]
[Source "ChessBase"]
[SourceQuality "1"]
[TimeControl "5400+30"]

{[%evp 23,91,21,57,47,50,64,58,61,67,75,70,65,66,59,76,76,78,70,66,66,64,62,84,75,158,156,161,172,163,166,153,145,267,207,204,213,197,149,145,154,134,145,131,84,91,86,100,91,160,137,329,313,304,295,605,597,911,877,956,700,2362,2348,2083,1909,1631,1408,1363,1312,997,753]} 1. Nf3 {[%emt 0:16:00]} c5 {[%emt 0:00:18]} 2. c4 {[%emt 0:00:17]} Nc6 {[%emt 0:00:44]} 3. Nc3 {[%emt 0:00:11]} g6 {[%emt 0:01:11]} 4. e3 {[%emt 0:00:41]} Nf6 {[%emt 0:01:16][%cal Bg8f6,Bf6d5,Bd5c3][%mdl 32]} 5. d4 {[%emt 0:01:55]} cxd4 {[%emt 0:00:06]} 6. exd4 {[%emt 0:00:05]} d5 {[%emt 0:00:31]} 7. cxd5 {[%emt 0:00:13]} Nxd5 {[%emt 0:00:32]} 8. Qb3 {[%emt 0:00:17]} Nxc3 {[%emt 0:01:17]} 9. Bc4 {[%emt 0:00:09]} Nd5 {[%emt 0:01:59]} 10. Bxd5 {[%emt 0:00:10]} e6 {[%emt 0:00:06]} 11. Bxc6+ {[%emt 0:00:08]} bxc6 {[%emt 0:00:03]} 12. O-O {[%emt 0:00:45]} Bg7 {[%emt 0:01:17][%cal Oe8g8]} 13. Bg5 {[%emt 0:03:08] A35: Symmetrical English: 2 Nc3 Nc6 3 Nf3.} Qd6 {[%emt 0:00:43][%cal Oa8b8] Black is weak on the dark squares} 14. Rac1 {[%emt 0:04:40]} O-O {[%emt 0:01:23][%cal Oa8b8]} 15. Qe3 {[%emt 0:02:14] White is slightly better.} Bb7 $146 {[%emt 0:09:07]} (15... Re8 16. Rc5 a5 17. Rfc1 Bb7 18. h4 a4 19. h5 f6 20. Bh6 Re7 21. Bxg7 Rxg7 {½-½ Aloma Vidal,R (2405)-Khamrakulov,I (2388) Catalunya-chT Gp1 2025 (4.3)}) 16. Rc5 {[%emt 0:02:02]} f6 {[%emt 0:02:45]} 17. Bf4 {[%emt 0:01:17]} Qd7 {[%emt 0:00:16]} 18. h4 {[%emt 0:01:17]} Rfe8 {[%emt 0:01:23]} 19. Bh6 {[%emt 0:02:00]} Bh8 {[%emt 0:03:39]} 20. Re1 {[%emt 0:02:55]} Rad8 {[%emt 0:02:01]} 21. Qb3 {[%emt 0:06:33]} Qf7 {[%emt 0:01:29]} 22. Re3 {[%emt 0:02:36] White is much more active.} Rd5 {[%emt 0:02:39]} 23. Qa3 {[%emt 0:04:38]} Bg7 {[%emt 0:07:25]} ({Better is} 23... a6) 24. Bxg7 $16 {[%emt 0:00:21]} Kxg7 {[%emt 0:00:10]} 25. Rxd5 {[%emt 0:01:14]} cxd5 {[%emt 0:01:37]} 26. Qxa7 {[%emt 0:00:24]} Ra8 {[%emt 0:03:27]} 27. Qb6 {[%emt 0:00:36]} Rxa2 {[%emt 0:01:42]} (27... Ra6 $16 28. Qb3 Qc7) 28. Rc3 {[%emt 0:05:15]} (28. Qxe6 Qxe6 29. Rxe6 Rxb2 $11) (28. Rxe6 Ra6 29. Qxa6 Bxa6 30. Rxa6 Qb7 $15) 28... Ra6 {[%emt 0:01:14]} 29. Qc7 {[%emt 0:00:31]} Ba8 {[%emt 0:01:35] [#]} 30. Ng5 $1 {[%emt 0:02:51][%mdl 512]} Qxc7 {[%emt 0:03:56]} (30... fxg5 $2 31. Qe5+ Kg8 32. Rc8+ $18 (32. Qxg5 Bc6 $17)) 31. Rxc7+ {[%emt 0:00:08][%mdl 4096] Endgame KRB-KRN} Kg8 {[%emt 0:00:05]} 32. Nxh7 {[%emt 0:00:08]} e5 {[%emt 0:00:10]} 33. dxe5 {[%emt 0:07:09]} ({White should play} 33. Kf1) 33... fxe5 {[%emt 0:00:05]} 34. Ng5 {[%emt 0:00:06]} d4 {[%emt 0:01:32]} 35. Rd7 {[%emt 0:00:04][%cal Of2f4]} Bc6 {[%emt 0:04:43]} (35... Kf8 $142) 36. Rd6 {[%emt 0:00:09]} Bb5 $2 {[%emt 0:00:27] Loses the game.} (36... Kg7 $16 37. f4 exf4 38. Ne6+ (38. Rxd4 Ra1+ 39. Kh2 Re1 $18) 38... Kh6 39. Nxf4 (39. Nxd4 Ra1+ 40. Kf2 Bb7 $16) 39... Ra1+ 40. Kf2 Rc1 41. Rxg6+ (41. Nxg6 Rc2+ 42. Ke1 Bxg2 $16) 41... Kh7) 37. Rxa6 $18 {[%emt 0:00:50]} Bxa6 {[%emt 0:00:06] KB-KN. White is a pawn up.} 38. Nf3 {[%emt 0:00:50]} d3 $2 {[%emt 0:00:06]} (38... Kf7 39. Nxe5+ Kf6) 39. Nd2 {[%emt 0:00:09] White is clearly winning.} (39. Nxe5 $2 {is the wrong capture.} d2 40. Kh2 d1=Q $19 (40... d1=R $2 41. Nxg6 Rb1 42. Kg3 $19)) 39... Kg7 {[%emt 0:03:59]} 40. f3 {[%emt 0:01:07]} Kh6 {[%emt 0:00:05]} 41. Kf2 {[%emt 0:00:09]} g5 {[%emt 0:00:08]} 42. hxg5+ {[%emt 0:00:08]} Kxg5 {[%emt 0:00:06]} 43. g3 {[%emt 0:00:05]} Bb5 {[%emt 0:00:31]} 44. Ke3 {[%emt 0:00:09]} Kf5 {[%emt 0:00:17]} 45. Ne4 {[%emt 0:00:20]} Ke6 {[%emt 0:00:32] Wards off Nd6} 46. Nc5+ {[%emt 0:00:37] Weighted Error Value: White=0.20 (precise) /Black=0.60  Loses game:     	---       	Black=1      Mistake:       	White=2     	Black=4      Inaccurate:     	---       	Black=1      OK:         	White=13    	Black=7      Best:        	White=5     	Black=4} 1-0

[Event "Budapest One Week IM-B 03-2025"]
[Site "Budapest"]
[Date "2025.03.18"]
[Round "3.1"]
[White "Mrithyunjay Mahadevan"]
[Black "Pribelszky, Bence"]
[Result "1/2-1/2"]
[Annotator "TA"]
[ECO "A05"]
[WhiteElo "2295"]
[BlackElo "2400"]
[PlyCount "126"]
[EventDate "2025.03.17"]
[EventType "tourn"]
[EventCountry "HUN"]
[SourceTitle "playchess.com"]
[Source "ChessBase"]
[SourceQuality "1"]
[TimeControl "5400+30"]

{[%evp 13,126,-10,-6,-7,0,-5,11,0,14,17,31,30,20,37,39,26,29,2,44,50,59,37,37,46,43,45,45,0,53,69,120,34,45,49,38,4,6,-16,3,-31,0,0,-1,-55,-19,-20,0,-66,-70,-196,-207,-203,-193,-254,-57,-145,-57,-512,-389,-874,-155,-249,-202,-195,-18,-9,-18,-14,-20,-289,-263,-271,-257,-275,-246,-255,-233,-483,-421,-487,-284,-233,-272,-297,-299,-420,-411,-415,-373,-380,-409,-395,-397,-414,-383,-341,-337,-453,-429,-443,-459,-617,-578,-630,-623,-623,-612,-604,-591,-569,-429,-361,-18,-18,-18]} 1. Nf3 {[%emt 0:03:16]} Nf6 {[%emt 0:01:47]} 2. b3 {[%emt 0:00:10]} b6 {[%emt 0:01:13]} 3. Bb2 {[%emt 0:00:07]} Bb7 {[%emt 0:00:05]} 4. e3 {[%emt 0:00:06]} g6 {[%emt 0:00:56]} 5. d4 {[%emt 0:00:53]} Bg7 {[%emt 0:00:10]} 6. Bd3 {[%emt 0:00:09]} O-O {[%emt 0:00:15]} 7. Nbd2 {[%emt 0:00:25] 7.0-0 injects fresh life into this line.} d6 {[%emt 0:03:53]} 8. O-O {[%emt 0:01:12] A47: 1 d4 Nf6 2 Nf3 b6: Torre, London and Colle Systems.} Nbd7 {[%emt 0:00:12]} 9. Re1 {[%emt 0:06:09]} Re8 {[%emt 0:04:27]} 10. e4 {[%emt 0:01:11]} e5 {[%emt 0:00:24]} 11. d5 {[%emt 0:00:22]} Nh5 $146 {[%emt 0:06:32]} (11... a5 12. a3 Rf8 13. b4 h6 14. Nc4 Nh5 15. bxa5 bxa5 16. a4 Nf4 17. Bc3 f5 18. Nxa5 {0-1 Lopez Mulet,I (2401)-Costachi,M (2476) Titled Tuesday intern op 14th Mar Early blitz 2023 (4)}) 12. b4 {[%emt 0:01:34]} Bh6 {[%emt 0:09:09]} 13. c4 {[%emt 0:01:57]} a5 {[%emt 0:03:10]} 14. a3 {[%emt 0:00:25]} Rf8 {[%emt 0:00:54]} 15. Bc3 {[%emt 0:05:26]} f5 {[%emt 0:05:24]} 16. bxa5 {[%emt 0:05:48]} Nf4 {[%emt 0:17:11]} 17. Bf1 {[%emt 0:02:26]} Nc5 {[%emt 0:02:01]} 18. exf5 {[%emt 0:05:06]} gxf5 {[%emt 0:00:35]} 19. Nb3 {[%emt 0:00:25]} Ne4 {[%emt 0:01:51]} 20. Bb4 {[%emt 0:01:04]} Kh8 {[%emt 0:04:05]} (20... c5 $11) 21. axb6 {[%emt 0:01:01]} cxb6 {[%emt 0:00:08]} (21... c6 $14) 22. Nbd2 {[%emt 0:01:21]} (22. a4 $16) 22... Nc5 $14 {[%emt 0:03:15]} 23. Qc2 {[%emt 0:03:47] Prevents Ncd3.} Bg7 {[%emt 0:06:06]} 24. Bc3 {[%emt 0:02:42]} Na4 $1 {[%emt 0:00:22]} 25. g3 {[%emt 0:01:23]} Ng6 {[%emt 0:01:31][%cal Ob6b5][%mdl 1024] Black has compensation.} (25... Nxc3 $5 26. Qxc3 e4 $11) 26. Rad1 {[%emt 0:01:57]} Bc8 {[%emt 0:05:27]} 27. Ba1 {[%emt 0:06:29]} Nc5 {[%emt 0:00:55]} 28. Bb2 {[%emt 0:00:12]} (28. Nb3 $11) 28... Bd7 {[%emt 0:00:14]} (28... f4 {keeps more tension.} 29. Bd3 Kg8 30. Bxg6 hxg6 31. Qxg6 Bf5) 29. Rb1 {[%emt 0:04:29]} Rf7 {[%emt 0:05:40]} 30. Qc1 {[%emt 0:04:01]} ({White should play} 30. Nb3 $11) 30... f4 $15 {[%emt 0:01:30]} 31. h4 {[%emt 0:02:03]} (31. Bc3 $15) 31... fxg3 $19 {[%emt 0:01:54]} 32. fxg3 {[%emt 0:00:07]} Bh6 {[%emt 0:01:52][%cal Of7f3] Repels Ng5} 33. Qd1 {[%emt 0:00:58]} (33. Qc3 Bf5 34. Rbc1) 33... Qg8 $2 {[%emt 0:01:53]} (33... Bg4 34. Nxe5 Nxe5 (34... Bxd1 $2 35. Nxf7+ Kg8 36. Nxd8 $18) (34... Rxf1+ $2 35. Nxf1 Bxd1 36. Nf7+ Kg8 37. Nxd8 $18) 35. Qxg4 $14) (33... Bxd2 $19 34. Nxe5 (34. Nxd2 $2 Qf6 $19) 34... Nxe5 35. Qxd2 Rc8 36. Rxe5 (36. Bxe5+ dxe5 37. Rxe5 Qf6 $17) 36... dxe5) 34. Bg2 {[%emt 0:03:11]} (34. Ng5 $15) 34... Bg4 {[%emt 0:10:50]} (34... Bf5 $17 35. Nf1 Raf8) 35. Nf1 $2 {[%emt 0:08:11][%mdl 8192]} (35. Ne4 $2 Bxf3 (35... Nxh4 $2 36. Nxe5 dxe5 37. Bxe5+ Bg7 38. Qxg4 $17) 36. Bxf3 Nxh4 $19) ({Only move:} 35. h5 $1 $15) 35... Raf8 {[%emt 0:01:18]} (35... Nxh4 36. Nxe5 dxe5 (36... Rxf1+ $2 37. Kxf1 dxe5 38. Bxe5+ Bg7 39. Qxg4 $18) 37. Bxe5+ Bg7 38. Qxg4 Nxg2 39. Kxg2 $14) 36. N1h2 {[%emt 0:01:24]} (36. Rxe5 Nxe5 37. Nxe5 dxe5 (37... Bxd1 38. Nxf7#) (37... Rxf1+ 38. Bxf1 dxe5 39. Bxe5+ Bg7 40. Qd4 $17) 38. Bxe5+ Bg7 39. Qd4) 36... Bf5 $2 {[%emt 0:00:19]} (36... Rxf3 $19 37. Nxf3 Bxf3 (37... Nxh4 $2 38. Nxe5 dxe5 39. Bxe5+ Bg7 40. Qxg4 $18) 38. Bxf3 Nxh4) 37. h5 {[%emt 0:02:55]} (37. Bc1 $17 Nf4 (37... Bxb1 38. Bxh6 Bd3 39. Ng5 $14) (37... Bxc1 38. Rxc1 Nd3 39. Ng5 $17) 38. gxf4 Bxb1 39. fxe5 Bxc1 40. Qxc1) 37... Bxb1 {[%emt 0:00:26]} 38. Qxb1 {[%emt 0:00:05]} Ne7 {[%emt 0:00:11]} (38... Nh4 $19 39. Nxe5 dxe5 40. Rxe5 Nxg2 (40... Qxg3 $2 41. Rg5+ Bg7 42. Rxg3 $18) 41. Rg5+ Rg7 (41... Bg7 $2 42. Rxg7 Rxg7 43. h6 $18)) 39. Nxe5 $11 {[%emt 0:00:42]} dxe5 {[%emt 0:00:16]} 40. Rxe5 {[%emt 0:00:05]} Bg7 {[%emt 0:00:57][%cal Og7f6] Strongly threatening ...Bf6!.} 41. Rg5 $2 {[%emt 0:00:07][%mdl 8192]} (41. d6 $1 $11 Nf5 42. Bd5) 41... h6 $19 {[%emt 0:00:34]} 42. Rg4 {[%emt 0:02:34]} Qh7 $1 {[%emt 0:00:07]} 43. Bxg7+ {[%emt 0:00:14]} Rxg7 {[%emt 0:00:06]} 44. Qxb6 {[%emt 0:00:07]} Nd7 {[%emt 0:01:12] Excellent horsemanship.} 45. Qe6 {[%emt 0:01:42]} (45. Qb2 {might work better.} Rb8 46. Qxg7+ Qxg7 47. Rxg7 Kxg7 48. Nf3) 45... Qb1+ {[%emt 0:01:08]} 46. Nf1 {[%emt 0:00:07]} Qb6+ {[%emt 0:00:31]} (46... Rxg4 $142 47. Qxg4 Qb6+ 48. Kh1 Nf5) 47. Qxb6 {[%emt 0:00:11]} Nxb6 {[%emt 0:00:03]} 48. Rxg7 {[%emt 0:00:07]} Kxg7 {[%emt 0:00:05]} 49. d6 {[%emt 0:00:08]} (49. Nd2 $142) 49... Nf5 {[%emt 0:01:21]} 50. c5 {[%emt 0:00:29]} Na4 {[%emt 0:00:34]} 51. g4 {[%emt 0:00:07]} Nh4 {[%emt 0:00:30]} 52. c6 {[%emt 0:00:11]} Nxg2 {[%emt 0:00:20]} 53. Kxg2 {[%emt 0:00:22]} Kf6 {[%emt 0:00:25]} 54. Ne3 {[%emt 0:00:35]} Ke6 {[%emt 0:00:26]} 55. Nf5 {[%emt 0:00:23][%cal Od6d7]} Nb6 {[%emt 0:00:48]} (55... Kd5 56. c7 Ke6 (56... Nb6 $2 57. d7 $18) 57. Nxh6 Kxd6 58. g5 $15) 56. d7 {[%emt 0:00:54]} Nd5 {[%emt 0:00:30]} (56... Kd5 57. c7 (57. Nxh6 Kxc6 58. g5 Nd5 $17) 57... Nxd7 58. Ne7+ (58. Nxh6 $2 Rc8 $19) 58... Ke4 59. c8=Q (59. c8=B Ne5 $17) (59. c8=R Rxc8 60. Nxc8 Kf4 $18) 59... Rxc8 60. Nxc8 $18) 57. Nxh6 {[%emt 0:00:48] [#]} Ne7 {[%emt 0:00:27] Inhibits Nf5.} (57... Kd6 $2 58. d8=Q+ (58. Nf7+ Kxc6 59. d8=Q Rxd8 $18) 58... Rxd8 59. Nf7+ Kxc6 60. Nxd8+ $18) 58. g5 {[%emt 0:01:01]} Nxc6 {[%emt 0:00:17]} 59. g6 {[%emt 0:00:17] g7 is the strong threat.} Ne7 {[%emt 0:00:46]} 60. g7 {[%emt 0:01:04]} Rd8 {[%emt 0:00:24]} 61. Ng4 {[%emt 0:00:12]} Kf7 {[%emt 0:00:34]} (61... Kxd7 62. h6 Nf5 (62... Ke6 $2 63. h7 $18) 63. Nf6+ Kc6 64. h7 (64. g8=R Rd2+ 65. Kf1 Nxh6 $14) 64... Nxg7 65. Ng8 Rd2+ 66. Kg1 Rd1+ 67. Kg2 Rd2+ 68. Kh3 $11) 62. h6 {[%emt 0:00:09] [#]} Nf5 $2 {[%emt 0:00:32]} (62... Rxd7 $2 {loses.} 63. Ne5+ Kg8 64. Nxd7 $18) ({Black should play} 62... Nd5 $1 $19 {[%cal Rd5f6]} 63. Kf3 Kg8) 63. Kf3 $11 {[%emt 0:01:16] [#]} (63. Ne5+ $2 Kg8 64. Ng4 Ne7 65. Nf6+ Kf7 $19) 63... Nxh6 $1 {[%emt 0:00:28] Weighted Error Value: White=0.56/Black=0.43  Loses game:     	White=2     	---        Missed win:     	---       	Black=4      Mistake:       	White=10    	Black=4      Inaccurate:     	White=5     	Black=3      OK:         	White=19    	Black=18     Best:        	White=1     	Black=3      Strong:       	---       	Black=2} 1/2-1/2

[Event "Budapest One Week IM-B 03-2025"]
[Site "Budapest"]
[Date "2025.03.18"]
[Round "3.2"]
[White "Luebke, Florentin"]
[Black "Ongut, Tamas Gunes"]
[Result "1/2-1/2"]
[Annotator "NA RC"]
[ECO "B30"]
[WhiteElo "2233"]
[BlackElo "2290"]
[PlyCount "59"]
[EventDate "2025.03.17"]
[EventType "tourn"]
[EventCountry "HUN"]
[SourceTitle "playchess.com"]
[Source "ChessBase"]
[SourceQuality "1"]
[TimeControl "5400+30"]

1. e4 {[%emt 0:00:05]} c5 {[%emt 0:04:11]} 2. Nf3 {[%emt 0:01:17]} Nc6 {[%emt 0:00:41]} 3. Bc4 {[%emt 0:00:17]} e6 {[%emt 0:03:46]} 4. O-O {[%emt 0:00:19]} a6 {[%emt 0:00:28]} 5. Re1 {[%emt 0:00:59]} b5 {[%emt 0:00:53]} 6. Bf1 {[%emt 0:00:16]} Bb7 {[%emt 0:02:16]} 7. c3 {[%emt 0:02:27]} d5 {[%emt 0:02:11]} 8. exd5 {[%emt 0:24:52]} Qxd5 {[%emt 0:00:13]} 9. d4 {[%emt 0:00:37]} Bd6 {[%emt 0:03:56]} 10. dxc5 {[%emt 0:06:25]} Qxd1 {[%emt 0:00:18]} 11. Rxd1 {[%emt 0:00:07]} Bxc5 {[%emt 0:00:06]} 12. b4 {[%emt 0:00:36]} Bb6 {[%emt 0:01:07]} 13. a4 {[%emt 0:00:32]} bxa4 {[%emt 0:00:36]} 14. Rxa4 {[%emt 0:00:31]} Nf6 {[%emt 0:00:14]} 15. c4 {[%emt 0:01:37]} O-O {[%emt 0:00:31]} 16. Bg5 {[%emt 0:17:32]} Rfd8 {[%emt 0:04:18]} 17. Rxd8+ {[%emt 0:05:15]} Rxd8 {[%emt 0:00:06]} 18. Nbd2 {[%emt 0:00:48]} h6 {[%emt 0:03:42]} 19. Be3 {[%emt 0:13:18]} Bxe3 {[%emt 0:02:08]} 20. fxe3 {[%emt 0:00:07]} Ng4 {[%emt 0:02:33]} 21. b5 {[%emt 0:01:04]} axb5 {[%emt 0:00:21]} 22. cxb5 {[%emt 0:00:25]} Nce5 {[%emt 0:00:14]} 23. Rd4 {[%emt 0:14:21]} Rc8 {[%emt 0:00:18]} 24. Nxe5 {[%emt 0:01:02]} Nxe5 {[%emt 0:00:08]} 25. Be2 {[%emt 0:01:16]} Kf8 {[%emt 0:01:38]} 26. Nf3 {[%emt 0:01:27]} Nxf3+ {[%emt 0:01:50]} 27. gxf3 {[%emt 0:01:22]} Ke7 {[%emt 0:00:09]} 28. e4 {[%emt 0:01:41]} e5 {[%emt 0:02:03]} 29. Rd2 {[%emt 0:01:14]} Rc3 {[%emt 0:01:10]} 30. Kf2 {[%emt 0:00:54]} 1/2-1/2

[Event "Budapest One Week IM-B 03-2025"]
[Site "Budapest"]
[Date "2025.03.18"]
[Round "3.3"]
[White "Kustar, Sandor"]
[Black "Shah, Vishwa"]
[Result "1/2-1/2"]
[Annotator "NA RC"]
[ECO "A58"]
[WhiteElo "2231"]
[BlackElo "2172"]
[PlyCount "45"]
[EventDate "2025.03.17"]
[EventType "tourn"]
[EventCountry "HUN"]
[SourceTitle "playchess.com"]
[Source "ChessBase"]
[SourceQuality "1"]
[TimeControl "5400+30"]

1. d4 {[%emt 0:00:05]} Nf6 {[%emt 0:00:11]} 2. c4 {[%emt 0:00:09]} c5 {[%emt 0:00:20]} 3. d5 {[%emt 0:00:11]} b5 {[%emt 0:00:04]} 4. cxb5 {[%emt 0:00:16]} a6 {[%emt 0:00:02]} 5. bxa6 {[%emt 0:00:18]} g6 {[%emt 0:00:05]} 6. Nc3 {[%emt 0:00:13]} Bg7 {[%emt 0:00:04]} 7. Nf3 {[%emt 0:00:30]} O-O {[%emt 0:00:14]} 8. e4 {[%emt 0:01:08]} Qa5 {[%emt 0:00:12]} 9. Bd2 {[%emt 0:01:46]} Bxa6 {[%emt 0:00:06]} 10. Bxa6 {[%emt 0:04:11]} Qxa6 {[%emt 0:00:05]} 11. Qe2 {[%emt 0:01:16]} e6 {[%emt 0:00:27]} 12. Qxa6 {[%emt 0:08:52]} Nxa6 {[%emt 0:00:08]} 13. dxe6 {[%emt 0:00:39]} fxe6 {[%emt 0:00:19]} 14. O-O {[%emt 0:01:12]} Nb4 {[%emt 0:00:44]} 15. a4 {[%emt 0:08:12]} Nd3 {[%emt 0:15:41]} 16. b3 {[%emt 0:05:11]} Rfb8 {[%emt 0:17:18]} 17. Rab1 {[%emt 0:00:35]} Rb4 {[%emt 0:01:28]} 18. Ne1 {[%emt 0:05:35]} Nxe1 {[%emt 0:04:12]} 19. Rfxe1 {[%emt 0:00:43]} c4 {[%emt 0:06:02]} 20. e5 {[%emt 0:06:36]} Ng4 {[%emt 0:02:03]} 21. bxc4 {[%emt 0:02:22]} Rxb1 {[%emt 0:01:00]} 22. Rxb1 {[%emt 0:00:10]} Nxe5 {[%emt 0:00:04]} 23. Be1 {[%emt 0:08:19]} 1/2-1/2

[Event "Budapest One Week IM-B 03-2025"]
[Site "Budapest"]
[Date "2025.03.18"]
[Round "3.4"]
[White "Varga, Zoltan"]
[Black "Venkatesh, Narayan"]
[Result "1-0"]
[Annotator "TA"]
[ECO "A45"]
[WhiteElo "2305"]
[BlackElo "2203"]
[PlyCount "119"]
[EventDate "2025.03.17"]
[EventType "tourn"]
[EventCountry "HUN"]
[SourceTitle "playchess.com"]
[Source "ChessBase"]
[SourceQuality "1"]
[TimeControl "5400+30"]

{[%evp 12,119,21,25,50,56,56,21,21,28,30,30,66,55,51,47,67,54,83,90,75,78,128,106,110,116,107,108,173,133,131,98,60,70,64,65,62,59,62,58,60,60,78,52,103,98,106,101,102,109,120,114,110,91,130,127,174,172,183,182,181,181,183,177,176,179,210,181,179,179,325,303,289,299,302,310,430,402,413,410,628,377,379,375,361,368,364,356,371,352,341,0,399,0,157,0,673,639,945,949,1305,1252,12850,11633,29983,29984,29984,29985,29986,29987]} 1. d4 {[%emt 0:14:46]} Nf6 {[%emt 0:00:13]} 2. g3 {[%emt 0:00:09]} e6 {[%emt 0:01:03]} 3. Bg2 {[%emt 0:00:06]} c5 {[%emt 0:01:34]} 4. Nf3 {[%emt 0:00:27]} cxd4 {[%emt 0:02:16]} 5. Nxd4 {[%emt 0:00:09]} Nc6 {[%emt 0:00:51]} 6. O-O {[%emt 0:00:12]} Be7 {[%emt 0:03:31][%cal Bf8e7,Be7d6,Bd6c5][%mdl 32]} 7. e4 {[%emt 0:00:42]} Nxd4 {[%emt 0:08:57] A46: 1 d4 Nf6 2 Nf3 e6: Torre, London and Colle Systems.} 8. Qxd4 {[%emt 0:00:06]} d6 {[%emt 0:00:06]} 9. e5 $146 {[%emt 0:00:54]} (9. Nc3 a6 10. e5 dxe5 11. Qxe5 O-O 12. h3 Qd6 13. Qxd6 Bxd6 14. Ne4 Nxe4 15. Bxe4 Rb8 16. Rd1 Bc7 17. Be3 e5 18. Kg2 Be6 {½-½ Valle,E (2032)-Garcia Mendez,E (2074) Bogota rapid op 2024 (6)}) 9... dxe5 {[%emt 0:00:53] The position is equal.} 10. Qxe5 {[%emt 0:00:02]} O-O {[%emt 0:01:40]} 11. Nc3 {[%emt 0:03:32]} Bd6 {[%emt 0:07:09]} 12. Qe2 {[%emt 0:01:30]} Qe7 {[%emt 0:03:34]} 13. Rd1 {[%emt 0:02:13]} Rd8 {[%emt 0:03:38]} 14. Nb5 {[%emt 0:09:52]} Bc5 {[%emt 0:11:18]} 15. Rxd8+ {[%emt 0:00:46]} Qxd8 {[%emt 0:02:27]} 16. Bf4 {[%emt 0:00:02]} a6 {[%emt 0:06:48]} (16... e5 $142 17. Bxe5 (17. Qxe5 Bxf2+ 18. Kh1 Bb6 $11) 17... Bg4) 17. Rd1 $16 {[%emt 0:02:29]} Bd7 {[%emt 0:05:24]} 18. Nd6 {[%emt 0:02:26]} Bxd6 {[%emt 0:00:50]} 19. Rxd6 {[%emt 0:02:41]} Qc8 {[%emt 0:03:44] Black is weak on the dark squares} (19... Qe7 $16 {keeps fighting.} 20. c4 (20. Bxb7 Bb5 $11) 20... Re8) 20. Be5 {[%emt 0:05:00]} Bb5 {[%emt 0:08:54]} 21. Qd2 {[%emt 0:02:11]} Nd5 {[%emt 0:11:34][%cal Bf6d5,Bd5e7,Be7f5,Bf5h4,Bh4g6][%mdl 32]} 22. b3 {[%emt 0:11:24]} Bc6 {[%emt 0:02:16]} 23. c4 {[%emt 0:00:06] White has a queen side majority} Ne7 {[%emt 0:00:56]} 24. Qg5 {[%emt 0:02:22][%csl Ge5][%cal Rg5g7]} (24. Bxc6 {simplifies} Nxc6 25. Bb2 Qf8 26. Qc3) 24... Nf5 {[%emt 0:05:48] [#]} 25. Bxc6 {[%emt 0:00:55]} bxc6 {[%emt 0:00:27]} 26. Rd3 {[%emt 0:00:01]} h6 {[%emt 0:01:04]} 27. Qd2 {[%emt 0:01:40] White has more active pieces.} c5 {[%emt 0:00:29] [#]} ({Better is} 27... f6 $14 28. Bc3 e5) 28. g4 $1 {[%emt 0:02:06]} Nh4 {[%emt 0:01:49]} 29. Bg3 {[%emt 0:01:21]} Ng6 {[%emt 0:00:09]} 30. Rd7 {[%emt 0:00:35]} Qc6 {[%emt 0:01:44]} 31. Qd3 {[%emt 0:00:52] Prevents Qe4} Rc8 {[%emt 0:00:56] Prevents Rc7} 32. h4 {[%emt 0:00:31][%cal Bh2h4,Bh4h5][%mdl 32]} e5 {[%emt 0:02:27]} 33. Rd6 $40 {[%emt 0:03:22][%mdl 128] White has strong attack.} Qb7 {[%emt 0:00:56]} (33... Qa8 $16 34. h5 Nf4 35. Bxf4 exf4) 34. Qf5 $18 {[%emt 0:00:06][%cal Od6d7]} Rf8 {[%emt 0:01:10]} 35. h5 {[%emt 0:04:35]} (35. Bxe5 $2 {is the wrong capture.} Nxh4 36. Rd5 Nxf5 $19) 35... Nf4 {[%emt 0:00:37]} 36. Bxf4 {[%emt 0:00:02]} (36. Qxe5 $2 Qg2#) 36... exf4 {[%emt 0:00:01]} 37. Qxf4 {[%emt 0:00:01][%mdl 4096] Endgame KQR-KQR. White is a pawn up.} Re8 {[%emt 0:00:20] ( -> ...Re1+)} 38. Rd5 {[%emt 0:00:16]} Qe7 {[%emt 0:00:32]} 39. Kg2 {[%emt 0:00:23]} a5 {[%emt 0:00:45]} 40. Qf5 {[%emt 0:00:29]} a4 {[%emt 0:00:46]} (40... Qb7 $142 41. Kg3 Qc7+ 42. Kg2 Qc6) 41. bxa4 Qb7 {[%emt 0:00:35]} 42. a5 {[%emt 0:06:55]} Qa8 {[%emt 0:00:18]} 43. Qd7 {[%emt 0:01:09]} Rb8 {[%emt 0:00:50] Wards off a6} 44. Qc7 {[%emt 0:00:31]} Rc8 {[%emt 0:00:12]} 45. Qb6 {[%emt 0:00:01]} Kh7 {[%emt 0:00:25]} (45... Rb8 $142 46. Qxc5 Rc8) 46. Kg3 {[%emt 0:02:16][%cal Oa5a6] Black must now prevent a6!.} Rc6 {[%emt 0:00:13]} 47. Qb1+ {[%emt 0:01:34]} Kg8 {[%emt 0:00:10]} 48. Qd3 {[%emt 0:00:31]} Rc8 {[%emt 0:00:11] Prevents Rd8+.} 49. Qf5 {[%emt 0:00:13]} Qb8+ {[%emt 0:00:29]} 50. Kg2 {[%emt 0:02:19]} Qa8 {[%emt 0:00:08]} 51. Qd7 {[%emt 0:01:43]} Rb8 $1 {[%emt 0:00:43]} 52. Qc7 {[%emt 0:01:19]} (52. Qd6 $18 {is the precise move to win.}) 52... Rc8 $16 {[%emt 0:00:09]} 53. Qb6 {[%emt 0:00:01]} (53. Qf4 $16) 53... Kh7 $1 $18 {[%emt 0:00:21]} 54. a6 {[%emt 0:02:44]} Rc6 {[%emt 0:02:06]} 55. Qb1+ {[%emt 0:00:27]} g6 {[%emt 0:00:02]} 56. Qb7 {[%emt 0:02:35]} Qe8 {[%emt 0:00:46] [#]} 57. Re5 $3 {[%emt 0:00:32][%mdl 512]} Re6 {[%emt 0:00:18]} (57... Qxe5 58. Qxc6) 58. hxg6+ {[%emt 0:00:09] White mates.} Kxg6 {[%emt 0:00:10]} 59. Qe4+ {[%emt 0:00:18]} Kg7 {[%emt 0:00:15]} 60. Rxe6 {[%emt 0:00:05] Weighted Error Value: White=0.31/Black=0.51  Missed win:     	White=1     	---        Mistake:       	White=1     	Black=6      Inaccurate:     	White=3     	Black=5      OK:         	White=20    	Black=21     Best:        	White=3     	Black=1      Strong:       	White=1     	Black=2} 1-0